bitfinex-derivatives/quotes_SOLF0:USTF0_20250901
["timestamp","ask_amount","ask_price","bid_price","bid_amount"]
[1756760524455,3.47471242,197.3,197.22,7.82]
[1756760524761,3.47471242,197.29,197.22,7.82]
[1756760524962,3.47471242,197.28,197.22,7.82]
[1756760525161,3.47471242,197.27,197.19,4.59975083]
[1756760525358,7.77,197.32,197.2,7.82]
[1756760525666,7.77,197.32,197.09,7.82]
[1756760525667,7.77,197.3,197.09,7.82]
[1756760525865,3.47366603,197.29,197.19,4.59975083]
[1756760526161,3.47366603,197.28,197.2,7.82]
[1756760526465,3.47366603,197.27,197.2,7.82]
[1756760526667,3.47366603,197.26,197.2,7.82]
[1756760526869,7.77,197.34,197.2,7.82]
[1756760527058,7.27819782,197.33,197.2,7.82]
[1756760527263,3.47406712,197.32,197.2,7.82]
[1756760527464,3.47406712,197.31,197.2,7.82]
[1756760527664,3.47406712,197.3,197.2,7.82]
[1756760527957,3.47406712,197.29,197.2,7.82]
[1756760528366,7.72,197.28,197.2,7.82]
[1756760528667,3.47406712,197.27,197.2,7.82]
[1756760528966,7.72,197.28,197.2,7.82]
[1756760528967,3.47406712,197.26,197.2,7.82]
[1756760529170,11.19406712,197.25,197.2,7.82]
[1756760529361,3.47406712,197.24,197.2,7.82]
[1756760529562,3.47406712,197.23,197.2,7.82]
[1756760529766,3.47406712,197.22,197.2,7.82]
[1756760529965,7.72,197.31,197.16,4.59975083]
[1756760530264,7.72,197.28,197.15,7.66]
[1756760530468,7.72,197.26,197.15,7.66]
[1756760530768,3.47350464,197.25,197.15,7.66]
[1756760530971,7.72,197.23,197.15,7.66]
[1756760531164,3.47350464,197.22,197.15,7.66]
[1756760531366,3.47350464,197.21,197.15,7.66]
[1756760531566,7.72,197.23,197.15,7.66]
[1756760531567,3.47350464,197.2,197.15,7.66]
[1756760531866,3.47350464,197.2,197.09,4.59975083]
[1756760531867,3.47350464,197.19,197.1,7.66]
[1756760532071,3.47350464,197.18,197.1,7.66]
[1756760532368,3.47350464,197.17,197.1,7.66]
[1756760532570,7.72,197.21,197.1,7.66]
[1756760532770,3.46827314,197.2,197.1,7.66]
[1756760532970,3.46827314,197.19,197.1,7.66]
[1756760533171,3.46827314,197.18,197.1,7.66]
[1756760533371,3.46827314,197.17,197.1,7.66]
[1756760533569,3.46827314,197.16,197.1,7.66]
[1756760533766,7.72,197.18,197.03,4.59975083]
[1756760534072,3.46599045,197.17,197.04,7.66]
[1756760534262,7.72,197.15,197.04,7.66]
[1756760534467,3.46599045,197.14,197.04,7.66]
[1756760534769,3.46599045,197.13,197.04,7.66]
[1756760534970,3.46599045,197.12,197.04,7.66]
[1756760535173,7.72,197.15,197.04,7.66]
[1756760535364,3.4593907,197.14,197.04,7.66]
[1756760535566,3.4593907,197.13,197.04,7.66]
[1756760535766,7.72,197.15,197.04,7.66]
[1756760535767,3.4593907,197.12,197.04,7.66]
[1756760535964,7.72,197.15,197.04,7.66]
[1756760536171,3.45937385,197.14,197.04,7.66]
[1756760536471,3.45937385,197.13,197.04,7.66]
[1756760536772,3.45937385,197.12,197.04,7.66]
[1756760536972,7.72,197.15,197.04,7.66]
[1756760537274,3.45613297,197.14,197.04,7.66]
[1756760537571,3.45613297,197.13,197.04,7.66]
[1756760537768,3.45613297,197.12,197.04,7.66]
[1756760537967,7.72,197.15,197.04,7.66]
[1756760538271,3.45358298,197.14,197.04,7.66]
[1756760538466,3.45358298,197.13,197.04,7.66]
[1756760538673,7.72,197.21,197.08,7.66]
[1756760538870,3.45172923,197.2,197.09,4.59975083]
[1756760539074,14.28,197.25,197.11,7.66]
[1756760539268,3.45168576,197.24,197.13,7.66]
[1756760539467,3.45168576,197.24,197.08,71.0382]
[1756760539468,7.72,197.27,197.16,7.66]
[1756760539774,39.08,197.32,197.18,4.59975083]
[1756760540072,11.17261783,197.31,197.19,7.66]
[1756760540273,3.45261783,197.3,197.19,7.66]
[1756760540573,3.45261783,197.29,197.19,7.66]
[1756760540774,3.45261783,197.28,197.19,7.66]
[1756760540973,3.45261783,197.27,197.19,7.66]
[1756760541273,7.72,197.31,197.19,7.66]
[1756760541474,3.45202649,197.3,197.19,7.66]
[1756760541674,3.45202649,197.29,197.19,7.66]
[1756760541871,3.45202649,197.28,197.19,7.66]
[1756760542067,148.44,197.35,197.22,7.66]
[1756760542268,3.45258779,197.34,197.22,7.66]
[1756760542471,7.72,197.32,197.18,7.66]
[1756760542669,7.72,197.3,197.18,7.66]
[1756760542874,3.45258779,197.29,197.18,7.66]
[1756760543074,7.72,197.3,197.18,7.66]
[1756760543268,148.44,197.35,197.21,7.66]
[1756760543474,3.45217653,197.34,197.24,7.66]
[1756760543678,3.45217653,197.33,197.24,7.66]
[1756760543874,7.72,197.35,197.24,7.66]
[1756760544076,3.45238927,197.34,197.27,7.66]
[1756760544277,340.66,197.38,197.27,7.66]
[1756760544475,3.45168777,197.37,197.3,7.66]
[1756760544667,3.45168777,197.36,197.3,7.66]
[1756760544866,3.4524082,197.35,197.26,12.25975083]
[1756760545075,7.72,197.36,197.26,7.66]
[1756760545370,3.45183138,197.35,197.26,7.66]
[1756760545575,3.45183138,197.34,197.26,7.66]
[1756760545780,340.66,197.38,197.26,12.25975083]
[1756760545781,481.26,197.38,197.26,12.25975083]
[1756760545985,3.45192577,197.37,197.26,12.25975083]
[1756760546281,3.45192577,197.36,197.26,12.25975083]
[1756760546482,481.26,197.38,197.26,12.25975083]
[1756760546775,3.45156971,197.37,197.26,12.25975083]
[1756760546969,3.45156971,197.36,197.26,12.25975083]
[1756760547174,3.45156971,197.35,197.26,12.25975083]
[1756760547373,340.66,197.38,197.26,12.25975083]
[1756760547574,340.66,197.38,197.27,7.66]
[1756760547575,3.45078179,197.37,197.27,7.66]
[1756760547775,3.45078179,197.36,197.29,4.59975083]
[1756760547974,340.66,197.38,197.29,4.59975083]
[1756760548180,3.45821051,197.37,197.29,4.59975083]
[1756760548482,3.45821051,197.36,197.29,4.59975083]
[1756760548679,340.66,197.38,197.29,4.59975083]
[1756760548882,3.4577653,197.37,197.3,7.66]
[1756760549080,3.4577653,197.36,197.3,7.66]
[1756760549374,340.66,197.38,197.3,7.66]
[1756760549578,3.45776932,197.37,197.3,7.66]
[1756760549780,7.72,197.4,197.3,7.66]
[1756760549978,3.45802993,197.39,197.3,7.66]
[1756760550176,3.45802993,197.38,197.3,7.66]
[1756760550378,7.72,197.4,197.3,7.66]
[1756760550578,3.45796099,197.39,197.3,7.66]
[1756760550777,3.45796099,197.38,197.3,7.66]
[1756760551080,11.17796099,197.37,197.27,4.59975083]
[1756760551276,3.45796099,197.36,197.27,4.59975083]
[1756760551476,7.72,197.37,197.25,7.66]
[1756760551477,3.45796099,197.35,197.25,7.66]
[1756760551773,3.45796099,197.34,197.25,7.66]
[1756760551978,7.72,197.37,197.25,7.66]
[1756760552179,3.45776842,197.36,197.25,7.66]
[1756760552373,3.45776842,197.35,197.25,7.66]
[1756760552576,3.45776842,197.34,197.25,7.66]
[1756760552776,7.72,197.37,197.25,7.66]
[1756760552982,3.4577419,197.36,197.25,7.66]
[1756760553179,3.4577419,197.35,197.25,7.66]
[1756760553380,11.1777419,197.34,197.25,7.66]
[1756760553577,3.45786751,197.33,197.21,4.59975083]
[1756760553782,11.17761,197.32,197.21,4.59975083]
[1756760553975,3.45727768,197.31,197.21,4.59975083]
[1756760554273,3.45859554,197.3,197.14,7.66]
[1756760554478,7.72,197.28,197.14,12.25975083]
[1756760554675,3.45846334,197.27,197.14,12.25975083]
[1756760554984,3.45846334,197.26,197.14,12.25975083]
[1756760555179,3.45914043,197.25,197.14,12.25975083]
[1756760555384,7.72,197.28,197.14,12.25975083]
[1756760555584,3.45914856,197.27,197.14,12.25975083]
[1756760555883,3.45914856,197.26,197.14,12.25975083]
[1756760556081,3.45914856,197.25,197.14,12.25975083]
[1756760556280,7.72,197.28,197.14,12.25975083]
[1756760556579,3.46058796,197.27,197.14,12.25975083]
[1756760556780,7.72,197.28,197.15,7.66]
[1756760556781,3.46058796,197.26,197.15,7.66]
[1756760556980,3.46058796,197.25,197.15,7.66]
[1756760557180,11.18043214,197.24,197.15,7.66]
[1756760557482,3.46043214,197.23,197.15,7.66]
[1756760557786,3.45938128,197.22,197.15,7.66]
[1756760557985,3.45938128,197.21,197.11,7.89]
[1756760558285,7.72,197.24,197.11,7.89]
[1756760558481,3.45966597,197.23,197.11,7.89]
[1756760558682,15.9,197.27,197.14,7.89]
[1756760558876,3.46007281,197.26,197.14,7.89]
[1756760559078,11.51007281,197.25,197.14,7.89]
[1756760559284,3.46007281,197.24,197.14,7.89]
[1756760559982,11.51007281,197.23,197.14,7.89]
[1756760560179,3.46007281,197.22,197.14,7.89]
[1756760560381,131.62,197.24,197.05,71.0488]
[1756760560382,8.05,197.28,197.17,7.89]
[1756760560582,3.46093765,197.27,197.17,7.89]
[1756760560782,3.46093765,197.26,197.17,7.89]
[1756760560981,3.46093765,197.25,197.17,7.89]
[1756760561286,3.46093765,197.24,197.17,7.89]
[1756760561584,3.46093765,197.23,197.17,7.89]
[1756760561786,8.05,197.28,197.17,7.89]
[1756760561984,3.46139238,197.27,197.19,4.59975083]
[1756760562178,140.1,197.31,197.2,7.89]
[1756760562383,3.46261287,197.3,197.2,7.89]
[1756760562582,3.46261287,197.29,197.2,7.89]
[1756760562780,8.05,197.27,197.14,7.89]
[1756760562984,3.46261287,197.26,197.14,7.89]
[1756760563183,3.46261287,197.26,197.06,7.5]
[1756760563184,3.46261287,197.25,197.16,4.59975083]
[1756760563389,3.46261287,197.24,197.17,7.89]
[1756760563692,140.08,197.3,197.19,4.59975083]
[1756760563888,3.46292061,197.29,197.19,4.59975083]
[1756760564188,3.46292061,197.28,197.19,4.59975083]
[1756760564389,3.46292061,197.27,197.19,4.59975083]
[1756760564687,148.11,197.32,197.2,7.89]
[1756760564688,3.46292061,197.26,197.2,7.89]
[1756760564887,8.05,197.32,197.2,7.89]
[1756760565088,145.55941481,197.33,197.2,7.89]
[1756760565089,8.05,197.3,197.2,7.89]
[1756760565289,3.46393876,197.29,197.2,7.89]
[1756760568996,3.46393876,197.28,197.23,7.89]
[1756760569195,107.6,197.36,197.26,7.89]
[1756760569396,3.46956149,197.35,197.26,7.89]
[1756760569699,3.46956149,197.34,197.26,7.89]
[1756760569904,3.46956149,197.33,197.26,7.89]
[1756760570103,107.6,197.36,197.26,7.89]
[1756760570305,3.46938253,197.35,197.3,7.89]
[1756760570503,8.05,197.43,197.3,7.89]
[1756760570806,7.28784746,197.42,197.3,7.89]
[1756760570996,3.47052545,197.41,197.3,7.89]
[1756760571300,3.47052545,197.4,197.3,7.89]
[1756760571506,3.47052545,197.39,197.3,7.89]
[1756760571806,3.47052545,197.38,197.3,7.89]
[1756760572002,3.47052545,197.37,197.3,7.89]
[1756760572209,3.47052545,197.36,197.3,7.89]
[1756760572404,3.47052545,197.35,197.3,7.89]
[1756760572601,8.05,197.39,197.3,7.89]
[1756760572810,3.46895293,197.38,197.3,7.89]
[1756760573006,3.46895293,197.37,197.3,7.89]
[1756760573308,3.46895293,197.36,197.3,7.89]
[1756760573508,3.4679787,197.35,197.3,7.89]
[1756760573704,8.05,197.39,197.3,7.89]
[1756760573905,3.4670614,197.38,197.3,7.89]
[1756760574101,3.4670614,197.37,197.3,7.89]
[1756760574302,3.4670614,197.36,197.3,7.89]
[1756760574502,8.05,197.39,197.3,7.89]
[1756760574699,3.46643512,197.38,197.3,7.89]
[1756760574906,3.46643512,197.37,197.3,7.89]
[1756760575106,3.46643512,197.36,197.3,7.89]
[1756760575307,8.05,197.39,197.3,7.89]
[1756760575506,3.46578537,197.38,197.3,7.89]
[1756760575707,3.46578537,197.37,197.3,7.89]
[1756760575910,8.05,197.43,197.3,7.89]
[1756760576209,8.05,197.43,197.28,4.59975083]
[1756760576210,3.46587541,197.42,197.32,7.89]
[1756760576410,3.46587541,197.41,197.32,7.89]
[1756760576610,3.46587541,197.4,197.32,7.89]
[1756760576811,3.46587541,197.39,197.32,7.89]
[1756760577011,3.46587541,197.38,197.32,7.89]
[1756760577309,3.46587541,197.37,197.31,4.59975083]
[1756760577609,8.05,197.43,197.31,12.48975083]
[1756760577811,3.46526992,197.42,197.31,12.48975083]
[1756760578010,3.46526992,197.41,197.31,12.48975083]
[1756760578204,3.46526992,197.4,197.31,12.48975083]
[1756760578410,3.46526992,197.39,197.31,12.48975083]
[1756760578610,3.46526992,197.38,197.31,12.48975083]
[1756760578805,8.05,197.43,197.31,12.48975083]
[1756760578806,3.46526992,197.37,197.31,12.48975083]
[1756760579004,8.05,197.43,197.31,12.48975083]
[1756760579204,3.46795668,197.42,197.31,12.48975083]
[1756760579405,3.46795668,197.41,197.31,12.48975083]
[1756760579604,3.46795668,197.4,197.31,12.48975083]
[1756760579802,8.05,197.43,197.31,12.48975083]
[1756760579803,3.46795668,197.39,197.32,7.89]
[1756760580006,8.05,197.43,197.32,7.89]
[1756760580211,3.46864034,197.42,197.32,7.89]
[1756760580509,3.46864034,197.41,197.32,7.89]
[1756760580710,3.46864034,197.4,197.32,7.89]
[1756760581010,340.82,197.48,197.39,4.59975083]
[1756760581310,3.4712407,197.47,197.4,7.89]
[1756760581514,3.4712407,197.46,197.4,7.89]
[1756760581714,8.05,197.49,197.4,7.89]
[1756760582012,3.4724233,197.48,197.4,7.89]
[1756760582211,3.4724233,197.47,197.4,7.89]
[1756760582407,8.05,197.49,197.4,7.89]
[1756760582607,3.4725363,197.48,197.42,4.59975083]
[1756760582813,111.92,197.53,197.43,7.89]
[1756760583005,3.47268968,197.52,197.43,7.89]
[1756760583208,3.47268968,197.51,197.43,7.89]
[1756760583406,3.47268968,197.5,197.43,7.89]
[1756760583611,3.47268968,197.49,197.43,7.89]
[1756760583810,111.92,197.53,197.43,7.89]
[1756760584013,3.47399694,197.52,197.43,7.89]
[1756760584315,11.52399694,197.51,197.43,7.89]
[1756760584510,3.47399694,197.5,197.43,7.89]
[1756760584711,3.47399694,197.49,197.43,7.89]
[1756760584907,8.05,197.52,197.39,12.48975083]
[1756760585112,3.47194519,197.51,197.39,7.89]
[1756760585313,8.05,197.49,197.39,7.89]
[1756760585515,3.47194519,197.48,197.39,7.89]
[1756760585713,3.47194519,197.47,197.39,7.89]
[1756760585919,116.51975083,197.53,197.39,7.89]
[1756760585920,119.97,197.53,197.39,12.48975083]
[1756760586112,3.47052325,197.52,197.39,12.48975083]
[1756760586319,3.47052325,197.51,197.39,12.48975083]
[1756760586510,3.47052325,197.5,197.39,12.48975083]
[1756760586817,11.52052325,197.49,197.39,12.48975083]
[1756760587012,3.47052325,197.48,197.39,12.48975083]
[1756760587215,3.47052325,197.47,197.39,12.48975083]
[1756760587510,3.46705439,197.46,197.39,12.48975083]
[1756760587716,8.05,197.49,197.39,12.48975083]
[1756760587912,3.46703817,197.48,197.39,12.48975083]
[1756760588216,3.46703817,197.47,197.39,12.48975083]
[1756760588418,8.05,197.49,197.39,12.48975083]
[1756760588718,3.46600279,197.48,197.39,12.48975083]
[1756760588912,3.46600279,197.47,197.39,12.48975083]
[1756760589215,8.05,197.49,197.39,12.48975083]
[1756760589514,3.4645055,197.48,197.39,12.48975083]
[1756760589810,3.4645055,197.47,197.39,12.48975083]
[1756760590015,8.05,197.49,197.39,12.48975083]
[1756760590216,46.2,197.54,197.39,12.48975083]
[1756760590217,7.66,197.53,197.4,7.52]
[1756760590417,3.46298648,197.52,197.42,4.59975083]
[1756760590618,7.66,197.5,197.38,7.52]
[1756760590818,3.46298648,197.49,197.38,7.52]
[1756760591111,7.66,197.5,197.38,7.52]
[1756760591112,3.46298648,197.48,197.38,7.52]
[1756760591317,7.66,197.5,197.38,7.52]
[1756760591512,3.46122343,197.49,197.38,7.52]
[1756760591814,3.46122343,197.48,197.38,7.52]
[1756760592122,7.66,197.5,197.38,7.52]
[1756760592123,3.46122343,197.47,197.38,7.52]
[1756760592414,7.66,197.5,197.38,7.52]
[1756760592615,7.66,197.48,197.38,7.52]
[1756760592817,3.46053561,197.47,197.38,7.52]
[1756760593013,3.46053561,197.46,197.38,7.52]
[1756760593319,11.11949557,197.45,197.34,4.59975083]
[1756760593519,7.66,197.45,197.33,7.52]
[1756760593720,3.45926188,197.44,197.33,7.52]
[1756760593926,3.45926188,197.43,197.33,7.52]
[1756760594117,11.11926188,197.42,197.33,7.52]
[1756760594424,3.45926188,197.41,197.29,7.52]
[1756760594620,4.59975083,197.44,197.2,78.5122]
[1756760594819,4.59975083,197.44,197.17,9.129]
[1756760594820,7.66,197.32,197.14,7.52]
[1756760595017,16.46,197.33,197.14,7.52]
[1756760595318,7.66,197.26,197.14,7.52]
[1756760595516,7.66,197.24,197.09,4.59975083]
[1756760595726,3.45414177,197.23,197.09,4.59975083]
[1756760596022,7.66,197.24,197.08,12.11975083]
[1756760596218,7.66,197.22,197.08,12.11975083]
[1756760596523,7.66,197.22,197.08,7.52]
[1756760596719,3.45290654,197.21,197.08,7.52]
[1756760596922,12.25975083,197.22,197.08,7.52]
[1756760597119,3.45286574,197.21,197.08,7.52]
[1756760597321,7.66,197.18,197.02,12.11975083]
[1756760597717,7.66,197.18,197.02,7.52]
[1756760598421,7.66,197.2,197.05,7.52]
[1756760598921,7.66,197.2,197.08,7.52]
[1756760599122,20.84,197.23,197.1,4.59975083]
[1756760599420,3.44956904,197.22,197.11,7.52]
[1756760599621,20.84,197.23,197.11,7.52]
[1756760599822,3.44951503,197.22,197.11,7.52]
[1756760600118,20.84,197.23,197.11,7.52]
[1756760600624,7.66,197.25,197.14,7.52]
[1756760601325,7.66,197.25,197.1,12.11975083]
[1756760601916,7.66,197.25,197.13,4.59975083]
[1756760602123,7.66,197.25,197.14,7.52]
[1756760602424,7.66,197.25,197.16,4.59975083]
[1756760603522,7.66,197.25,197.14,7.52]
[1756760603921,7.66,197.17,197.0,7.52]
[1756760604126,27.56994203,197.16,197.0,7.52]
[1756760604427,7.66,197.15,197.0,7.52]
[1756760604728,12.25975083,197.15,196.94,0.88329357]
[1756760604924,7.66,197.04,196.87,7.52]
[1756760605124,4.59975083,197.01,196.87,7.52]
[1756760605318,7.66,197.0,196.81,7.52]
[1756760605522,12.25975083,197.0,196.82,4.59975083]
[1756760605716,12.25975083,197.0,196.84,4.59975083]
[1756760605924,12.25975083,197.0,196.83,7.52]
[1756760606130,7.66,197.0,196.83,7.52]
[1756760607024,7.66,197.0,196.85,7.52]
[1756760608827,7.66,197.0,196.87,7.52]
[1756760609531,7.51320123,197.06,196.89,7.52]
[1756760609532,166.92,197.06,196.89,7.52]
[1756760609723,3.65881791,197.05,196.9,71.1028]
[1756760609925,3.65855137,197.04,196.86,7.52]
[1756760610123,3.65798666,197.03,196.89,7.52]
[1756760610327,7.66,197.07,196.89,7.52]
[1756760610527,3.65585484,197.06,196.89,7.52]
[1756760610726,3.65585484,197.05,196.89,12.0909]
[1756760610934,3.65585484,197.04,196.89,7.52]
[1756760611128,3.65585484,197.03,196.89,7.52]
[1756760611327,7.66,197.04,196.89,7.52]
[1756760611526,3.65263981,197.03,196.89,7.52]
[1756760611728,11.31263981,197.02,196.89,7.52]
[1756760611929,11.31263981,197.02,196.89,4.571]
[1756760611930,3.65263981,197.01,196.89,4.571]
[1756760612231,7.66,197.02,196.9,7.52]
[1756760612531,7.66,197.02,196.93,4.5701]
[1756760612731,7.66,197.07,196.93,4.5701]
[1756760612931,3.65070057,197.06,196.93,4.5701]
[1756760613132,3.65070057,197.05,196.9,7.52]
[1756760613333,7.66,197.07,196.92,15.03320123]
[1756760613530,3.64837432,197.06,196.94,7.52]
[1756760613732,7.66,197.07,196.94,7.52]
[1756760613925,3.64850328,197.06,196.94,7.52]
[1756760614127,3.64687698,197.05,196.8,7.52]
[1756760614325,7.66,196.97,196.8,7.52]
[1756760614527,7.66,196.93,196.8,7.52]
[1756760615332,3.63848752,196.92,196.75,7.52]
[1756760615526,7.66,196.93,196.75,7.52]
[1756760615730,3.63846609,196.92,196.75,7.52]
[1756760615927,7.66,196.93,196.77,4.5738]
[1756760616331,7.66,196.93,196.75,7.52]
[1756760616628,7.66,196.91,196.75,7.52]
[1756760619538,7.51320123,196.91,196.73,160.78]
[1756760619733,11.68,196.97,196.56,71.2258]
[1756760619734,3.62297016,196.9,196.56,71.2258]
[1756760620042,7.52,196.84,196.67,7.57]
[1756760620830,5.51941481,196.94,196.63,164.44]
[1756760621036,124.0,196.96,196.49,71.247]
[1756760621037,7.52,196.84,196.67,7.57]
[1756760621940,12.0923,196.84,196.69,7.57]
[1756760622136,83.2162,196.84,196.69,7.57]
[1756760622433,7.52,196.89,196.71,71.1707]
[1756760622630,78.6258,196.89,196.72,7.57]
[1756760623033,7.52,196.89,196.74,7.57]
[1756760623340,7.52,196.85,196.67,7.57]
[1756760623535,7.52,196.85,196.69,7.57]
[1756760623731,71.1233,196.84,196.71,7.57]
[1756760624048,71.1048,196.89,196.66,348.67]
[1756760624049,7.52,196.82,196.66,348.67]
[1756760624239,7.51320123,196.83,196.66,348.67]
[1756760624440,7.52,196.78,196.59,7.57]
[1756760624638,7.51320123,196.79,196.59,174.51]
[1756760624844,7.52,196.78,196.61,7.57]
[1756760625036,7.52,196.78,196.62,7.57]
[1756760625238,7.52,196.84,196.65,7.51320123]
[1756760625445,0.88471952,196.85,196.71,71.1695]
[1756760625645,7.52,196.9,196.74,7.57]
[1756760625943,7.52,196.88,196.74,7.57]
[1756760626545,7.52,196.85,196.68,7.57]
[1756760626944,7.52,196.87,196.68,7.57]
[1756760627142,7.52,196.87,196.68,78.7513]
[1756760627445,0.88449466,196.92,196.8,7.57]
[1756760627845,7.52,196.97,196.8,7.57]
[1756760628042,7.52,196.93,196.75,7.57]
[1756760628241,3.60593598,196.92,196.75,7.57]
[1756760628449,7.52,196.89,196.69,7.57]
[1756760628647,7.52,196.87,196.69,7.57]
[1756760628846,7.52,196.85,196.62,177.17320123]
[1756760629043,7.52,196.85,196.63,7.57]
[1756760629537,7.52,196.85,196.68,7.57]
[1756760629741,7.52,196.85,196.71,7.57]
[1756760629939,7.52,196.85,196.66,7.57]
[1756760630142,7.52,196.85,196.69,7.57]
[1756760630942,7.52,196.83,196.64,7.57]
[1756760631445,7.52,196.79,196.58,7.57]
[1756760631745,7.51320123,196.84,196.58,7.57]
[1756760631746,7.52,196.74,196.58,7.57]
[1756760632337,4.5758,196.69,196.58,7.57]
[1756760632539,78.6806,196.74,196.58,7.57]
[1756760632540,7.52,196.74,196.58,7.57]
[1756760632943,71.1748,196.7,196.58,7.57]
[1756760633143,71.1785,196.69,196.58,7.57]
[1756760633346,4.5758,196.69,196.58,7.57]
[1756760633549,71.1676,196.72,196.58,7.57]
[1756760633743,71.1929,196.65,196.52,7.57]
[1756760633940,4.5769,196.64,196.52,7.57]
[1756760634144,71.1968,196.64,196.52,7.57]
[1756760634344,78.6983,196.69,196.52,7.57]
[1756760634545,71.1893,196.66,196.52,7.57]
[1756760634747,71.1931,196.65,196.52,7.57]
[1756760634950,4.5774,196.62,196.52,7.57]
[1756760635349,71.1892,196.66,196.52,7.57]
[1756760635556,71.1824,196.68,196.52,7.57]
[1756760635752,71.1859,196.67,196.52,7.57]
[1756760635953,4.577,196.64,196.52,7.57]
[1756760636147,7.52,196.69,196.52,7.57]
[1756760636354,7.52,196.69,196.53,7.57]
[1756760636547,71.1857,196.67,196.53,7.57]
[1756760637044,7.52,196.69,196.53,78.8058]
[1756760637246,7.52,196.69,196.57,71.2214]
[1756760637453,71.1627,196.74,196.59,78.72740123]
[1756760637454,7.52,196.74,196.59,78.72740123]
[1756760637654,3.63035398,196.73,196.6,78.7805]
[1756760637949,179.92,196.8,196.65,7.51320123]
[1756760638153,3.59913077,196.79,196.65,7.51320123]
[1756760638358,8.17283077,196.78,196.65,7.51320123]
[1756760638655,3.59913077,196.77,196.63,7.57]
[1756760638849,3.59913077,196.76,196.66,7.57]
[1756760639057,7.52,196.8,196.67,7.51320123]
[1756760639250,3.60538194,196.79,196.7,4.5754]
[1756760639451,3.60538194,196.78,196.68,7.57]
[1756760639652,7.52,196.85,196.68,7.57]
[1756760639858,3.61212409,196.84,196.72,7.57]
[1756760640054,3.61212409,196.83,196.72,7.57]
[1756760640249,341.5,196.87,196.79,4.5734]
[1756760640552,341.5,196.87,196.75,71.1566]
[1756760640553,5.51941481,196.96,196.88,71.1095]
[1756760640751,5.51941481,196.97,196.87,4.5713]
[1756760641054,7.52,196.95,196.84,7.57]
[1756760641458,13.03941481,197.01,196.84,7.57]
[1756760641861,7.52,197.01,196.87,4.5715]
[1756760642059,15.03320123,197.01,196.84,7.57]
[1756760642262,7.52,197.01,196.84,7.57]
[1756760642459,7.52,197.02,196.83,78.63900123]
[1756760642663,7.52,197.02,196.84,7.57]
[1756760642864,7.52,196.99,196.78,7.57]
[1756760643062,7.52,196.99,196.81,4.5729]
[1756760643365,7.52,196.99,196.84,7.57]
[1756760643566,7.52,196.99,196.8,7.51320123]
[1756760643867,15.03320123,196.99,196.79,7.57]
[1756760644060,7.52,196.99,196.85,7.57]
[1756760644262,7.52,197.04,196.89,7.57]
[1756760644767,0.88392177,197.05,196.83,7.57]
[1756760645071,15.03320123,197.04,196.84,7.51320123]
[1756760645268,15.03320123,197.04,196.83,7.57]
[1756760645457,62.37941481,197.06,196.83,7.57]
[1756760645458,7.52,196.99,196.83,7.57]
[1756760645766,7.51320123,196.99,196.76,7.57]
[1756760645972,7.52,196.98,196.79,7.57]
[1756760646561,7.52,196.98,196.79,15.08320123]
[1756760646769,7.52,196.98,196.83,7.51320123]